Cogmind - Beta 16.1 @@@ ROGUE MODE // 2026.04.23 @ 13:41:58 Player: Bereft Result: Destroyed by G-34 Mercenary with Small Laser Performance ------------- Evolutions (0) 0 Regions Visited (1) 200 Robots Destroyed (12) 60 Value Destroyed (182) 182 Prototype IDs (0) 0 Alien Tech Used (0) 0 Bonus (0) 0 TOTAL SCORE: 442 Bonus ------- None Cogmind --------- Core Integrity 0/250 Matter 300/300 Energy 100/100 System Corruption 0% Temperature Cool (15) Movement Core (50) Location -10/Materials Parts ------- > --- POWER (1) -------- (None) > --- PROPULSION (2) --- (None) > --- UTILITY (2) ------ Visual Processing Unit Utility Shielding > --- WEAPON (2) ------- Mining Claw > --- INVENTORY (5) ---- Light Ion Engine Aluminum Leg Sensor Array Signal Interpreter Mining Claw Peak State ------------ > --- POWER ------------ Ion Engine > --- PROPULSION ------- Aluminum Leg Aluminum Leg > --- UTILITY ---------- Visual Processing Unit Tractor Beam > --- WEAPON ----------- EM Pulse Gun Medium Laser > --- INVENTORY -------- Light Ion Engine Heat Sink Heat Sink [Rating: 8] Favorites ----------- Power Ion Engine Engine Ion Engine Propulsion Light Treads Treads Light Treads Leg Aluminum Leg Utility Small Storage Unit Device Tractor Beam Storage Small Storage Unit Processor Visual Processing Unit Protection Utility Shielding Weapon EM Pulse Gun Energy Gun EM Pulse Gun Special Weapon Mining Laser Slashing Weapon Mining Claw Build | -11 -10 ------- Run | Yrd Mat Slots Evolved . | . . Power . | . . Propulsion . | . . Utility . | . . Weapon . | . . Parts Attached 16 | 11 5 Power 1 | 1 . Engine 1 | 1 . Core . | . . Reactor . | . . Propulsion 4 | 4 . Treads 2 | 2 . Leg 2 | 2 . Wheel . | . . Hover . | . . Flight . | . . Utility 6 | 2 4 Device 2 | . 2 Storage 2 | 2 . Processor 1 | . 1 Hackware . | . . Protection 1 | . 1 Artifact . | . . Weapon 5 | 4 1 Energy Gun 2 | 2 . Energy Cannon . | . . Ballistic Gun . | . . Ballistic Cannon . | . . Launcher . | . . Special Weapon 2 | 2 . Impact Weapon . | . . Slashing Weapon 1 | . 1 Piercing Weapon . | . . Special Melee Weapon . | . . Unidentified Prototypes . | . . Parts Lost 7 | . 7 Power 1 | . 1 Propulsion 2 | . 2 Utility 1 | . 1 Weapon 3 | . 3 Highest Loss Streak 3 | . 3 To Critical Strikes 1 | . 1 Average Backups 2 | . 5 Power . | . 1 Propulsion . | . 1 Utility . | . 1 Weapon . | . 1 Tool/Special . | . . Unused Backups 7 | 1 6 Power 2 | 1 1 Propulsion 1 | . 1 Utility 3 | . 3 Weapon 1 | . 1 Tool/Special . | . . Average Slot Usage (%) 90 | . 90 Engine 12 | . 12 Treads 12 | . 12 Leg 14 | . 14 Device 8 | . 8 Storage 6 | . 6 Processor 7 | . 7 Energy Gun 10 | . 10 Special Weapon 9 | . 9 Slashing Weapon 6 | . 6 Peak Build Rating 8 | 7 8 Average Rating 6 | 5 6 On Entrance 3 | . 6 Avg Prop Armor Cover (%) . | . . Naked Turns . | . . Heaviest Build 19 | 19 15 Greatest Support 40 | 40 40 Greatest Overweight (x) . | . . Average Overweight (x) . | . . Largest Inventory Capacity 8 | 8 8 Average Capacity 7 | 7 6 Most Carried 7 | 6 7 Average Carried 2 | . 5 Final Capacity 8 | 8 5 Final Carried 6 | 6 5 Class Distribution -------------------- 100% | Mutant Dominant Class ---------------- Mutant | -10/Materials Resources | -11 -10 ----------- Run | Yrd Mat Matter Collected 395 | 310 85 Remotely 85 | . 85 Salvage Created 332 | 135 197 Parts 26 | 12 14 Haulers Intercepted . | . . Recyclers Shooed 1 | 1 . Parts Field Recycled . | . . Retrieved Matter . | . . Parts Self-Destructed . | . . Prevented . | . . Parts Restored . | . . Kills | -11 -10 ------- Run | Yrd Mat Combat Hostiles Destroyed 5 | . 5 Melee 2 | . 2 Guns 2 | . 2 Cannons 1 | . 1 Classes Destroyed 6 | 3 3 Worker 2 | 2 . Tunneler 2 | 2 . Recycler 2 | 1 1 Watcher 1 | . 1 Swarmer 3 | . 3 Grunt 2 | . 2 Best Kill Streak 4 | 3 4 Combat Bots Only 3 | . 3 Max Kills in Single Turn 1 | 1 1 Gunslinging . | . . Exploded . | . . Melee 1 | . 1 Uniques/NPCs Destroyed . | . . Combat | -11 -10 -------- Run | Yrd Mat Hostile Shots Fired 84 | . 84 Missed 18 | . 18 Hits 66 | . 66 Projectile 66 | . 66 Critical Strikes 1 | . 1 Damage Taken 742 | . 742 Core 253 | . 253 Absorbed by Shields . | . . Core Remaining (%) 100 | 100 . Volleys Fired 36 | 10 26 Largest 2 | 2 2 Hottest 200 | 200 200 Shots Fired 65 | 20 45 Gun 33 | 18 15 Cannon . | . . Launcher . | . . Special 32 | 2 30 Kinetic . | . . Thermal 46 | 11 35 Explosive . | . . Electromagnetic 19 | 9 10 Robot Hit Streak 8 | 8 3 Robot Miss Streak 4 | 1 4 Penetration Max . | . . Secondary Targets . | . . Shots Hit Robots 31 | 11 20 Core Hits 13 | 6 7 Critical Kills . | . . Critical Parts Destroyed . | . . Critical Strikes 2 | 2 . Burn 2 | 2 . Melee Attacks 29 | . 29 Impact . | . . Slashing 29 | . 29 Piercing . | . . Sneak Attacks 1 | . 1 Combat Hostiles . | . . Follow-up Attacks . | . . Damage Inflicted 544 | 151 393 Guns 240 | 151 89 Cannons . | . . Explosions . | . . Melee 280 | . 280 Ramming . | . . Kinetic . | . . Thermal 123 | 48 75 Explosive . | . . Electromagnetic 141 | 103 38 Impact . | . . Slashing 280 | . 280 Piercing . | . . Highest Corruption . | . . Average Corruption . | . . Corruption Purged . | . . Corruption Blocked . | . . Overload Shots . | . . Overflow Damage 19 | . 19 Projectiles . | . . Explosions . | . . Melee 19 | . 19 Knockbacks . | . . Impact . | . . Kinetic . | . . Secondary . | . . Self-Inflicted Damage . | . . Shots . | . . Rammed . | . . Targets Rammed . | . . Kicked . | . . Crushed . | . . Highest Temperature 280 | 120 280 Average Temperature 84 | 44 95 Received Heat Transfer 285 | . 285 Effects 2 | . 2 Interference 2 | . 2 Siege Activations . | . . Martial Activations . | . . Shielding Activations . | . . Robots Disrupted . | . . Combat Hostiles . | . . Robots Corrupted . | . . Combat Hostiles . | . . Parts Fried 1 | 1 . Impact Corruptions . | . . Robots Melted . | . . Combat Hostiles . | . . Parts Melted 1 | . 1 Heat Transferred 494 | 296 198 Parts Sabotaged . | . . Parts Stolen . | . . Parts Stripped . | . . Power Chain Reactions . | . . Alert | -11 -10 ------- Run | Yrd Mat Maximum Alert Level . | . . Low Security (%) 100 | 100 100 Level 1 . | . . Level 2 . | . . Level 3 . | . . Level 4 . | . . Level 5 . | . . High Security . | . . Max Security . | . . Peak Influence 62 | 10 62 Initial . | . . Average 3 | . 9 Influence Increases 235 | 25 210 Destroy 0b10 Robot/C 100 | . 100 Destroy 0b10 Robot/NC 35 | 25 10 Destroy Leader 22 | . 22 Successful Hack 14 | . 14 Disable Machine 60 | . 60 Destroy Structure 4 | . 4 Influence Decreases 227 | 25 202 Time Decay 165 | 25 140 Lost Part 62 | . 62 Squads Dispatched 1 | . 1 Investigation 1 | . 1 Extermination . | . . Reinforcement . | . . Assault . | . . Garrison . | . . Intercept . | . . Searches Triggered . | . . Construction Impeded . | . . Haulers Reinforced . | . . Active Scanning Responses . | . . Cargo Convoy Interrupts . | . . Stealth | -11 -10 --------- Run | Yrd Mat Distress Signals 1 | . 1 Communications Jammed . | . . Distress Signals . | . . Times Spotted 11 | . 11 Peak Tracking Total 4 | . 4 Tactical Retreats . | . . Traps | -11 -10 ------- Run | Yrd Mat Traps Triggered 2 | . 2 Indirectly . | . . Trap Hack Attempts . | . . Triggered . | . . Disarmed . | . . Reprogrammed . | . . Reused . | . . Traps Extracted . | . . Installed . | . . Triggered . | . . Machines | -11 -10 ---------- Run | Yrd Mat Machines Disabled 4 | . 4 Max in Single Turn 1 | . 1 Machines Repaired . | . . Machines Dismantled . | . . Machines Sabotaged . | . . Overloaded Fab Kills . | . . Hacking | -11 -10 --------- Run | Yrd Mat Machines Accessed 1 | . 1 Terminals 1 | . 1 Fabricators . | . . Repair Stations . | . . Recycling Units . | . . Scanalyzers . | . . Garrison Access . | . . Total Hacks 3 | . 3 Successful 2 | . 2 Failed 1 | . 1 Catastrophic . | . . Database Lockouts . | . . Manual . | . . Terminals 3 | . 3 Fabricators . | . . Repair Stations . | . . Recycling Units . | . . Scanalyzers . | . . Garrison Access . | . . Terminal Hacks 2 | . 2 Record 1 | . 1 Zone Layout 1 | . 1 Fabricator Hacks . | . . Repair Station Hacks . | . . Recycling Unit Hacks . | . . Scanalyzer . | . . Garrison Access Hacks . | . . Unauthorized Hacks . | . . Terminals . | . . Fabricators . | . . Repair Stations . | . . Recycling Units . | . . Scanalyzers . | . . Garrison Access . | . . Data Cores Recovered . | . . Used . | . . Hacking Detections 1 | . 1 Full Trace Events 1 | . 1 Feedback Events . | . . Feedback Blocked . | . . Robot Schematics Acquired . | . . Robots Built . | . . Authchips . | . . Time . | . . Total Robot Build Rating . | . . Part Schematics Acquired . | . . Parts Built . | . . Authchips . | . . Time . | . . Total Part Build Rating . | . . Part Studies Acquired . | . . Parts Repaired . | . . Time . | . . Parts Recycled . | . . Recycled Matter . | . . Retrieved Matter . | . . Retrieved Components . | . . Parts Scanalyzed . | . . Part Schematics Acquired . | . . Parts Damaged . | . . Bothacking | -11 -10 ------------ Run | Yrd Mat Used RIF Installer . | . . Robots Hacked . | . . Non-combat . | . . Combat . | . . Robot Hacks Applied . | . . Relay Couplers Released . | . . Fabnet Peak Effective % . | . . Robots Rewired . | . . Allies Hacked . | . . Hacks Repelled . | . . Allies | -11 -10 -------- Run | Yrd Mat Total Allies . | . . Largest Group . | . . Highest-Rated Group . | . . Highest-Rated Ally . | . . Total Orders . | . . Ally Attacks . | . . Total Damage . | . . Kills . | . . Allies Corrupted . | . . Allies Melted . | . . Intel | -11 -10 ------- Run | Yrd Mat Active Infowar (turns) 349 | . 349 Optics 349 | . 349 Robot Analysis Total . | . . Derelict Logs Recovered . | . . Drone Launches . | . . Drone Recoveries . | . . Exploration | -11 -10 ------------- Run | Yrd Mat Turns Passed 1726 | 1084 642 Spaces Moved 455 | 172 283 Core 9 | 9 . Treads 232 | 148 84 Legs 214 | 15 199 Wheels . | . . Hover . | . . Flight . | . . Fastest Speed 50 | 50 120 Average Speed 139 | 150 131 Slowest Speed 160 | 160 160 Overloaded Moves . | . . Propulsion Burnouts . | . . Robots Hopped . | . . Potential Cave-ins . | . . Cave-ins Triggered . | . . Exploration Rate (%) 27 | 16 38 Regions Visited 1 Branch Regions . Pre-discovered Areas . | . . Known Exits Taken . | . . Unknown Exits Taken 1 | 1 . Scrap Searched . | . . Spaces Dug 6 | 2 4 Terrain Destroyed 9 | 2 7 Melee . | . . Projectile 9 | 2 7 AOE . | . . Terrain Rammed . | . . Walls Destroyed . | . . Machines Disabled . | . . Actions | -11 -10 --------- Run | Yrd Mat Total 1362 | 971 391 Wait 792 | 765 27 Move 454 | 171 283 Hop . | . . Pick Up 19 | 10 9 Fast Attach 6 | 6 . Attach 9 | 3 6 Detach . | . . Swap 6 | 2 4 Drop 11 | 4 7 Fire 36 | 10 26 Melee 29 | . 29 Ram . | . . Kick . | . . Crush . | . . Escape Stasis . | . . Rewire . | . . Trap . | . . Miscellaneous . | . . Route ------- -11/Scrapyard -10/Materials History --------- Turn | Location | Event 5 | -11/Scrapyard | Discovered new exit (range 15) 1085 | -11/Scrapyard | Entered Materials 1086 | -10/Materials | Build established: Mutant 1710 | -10/Materials | Core integrity fell below 50% 1722 | -10/Materials | Core integrity fell below 20% 1727 | -10/Materials | Destroyed by G-34 Mercenary with Small Laser Last Messages --------------- W-16 Scout sends out distress signal. S-10 Pest destroyed. Acquired 20 matter. Terminal disabled. Critical hit (Destroy). Ion Engine destroyed. Destroyed Flight Unit. S-10 Pest destroyed. Acquired 8 matter. EM Pulse Gun destroyed. S-10 Pest destroyed. R-06 Scavenger collects Flight Unit. Sneak attack on R-06 Scavenger. Destroyed Com. Wheel. R-06 Scavenger destroyed. K-01 Serf collects debris. Tractor Beam destroyed. Aluminum Leg destroyed. G-34 Mercenary Aluminum Leg ripped off. Aluminum Leg destroyed. Map ----- +----------------------------------------------------+ | | | | | | | | | | | | | | | | | | | | | | | | | | | | | ???????????????????????????????????????????? | | ???????????????????????????????????????????? | | ?????????????????????????########??????????? | | ??????????????????"??????# #??????????? | | ???????????????? """ ???# "" #??????????? | | ???????????????? """ # " ! #??????????? | | ?????????????????""" +=%= #??????????? | | ??????????????????? ???#[ #??????????? | | ??????????????#######+#??#%* =%=#??#???????? | | ??????????????#[[ #######+## +???????? | | ??????????????#[[ gg ![ #???????? | | ??????????????#|| ^ @ w #???????? | | ??????????????#|| """"" ##+##+##???????? | | ??????????????#]] ""T""m #??????????????? | | ??????????????#]] ^ #??????????????? | | ???????????????#### #??????????????? | | ??????????????????# !!! #??????????????? | | ??????????????????# !! #??????????????? | | ??????????????????# !! #??????????????? | | ??????????????????# ################ | | ??????????????????# #! [=# | | ??????????? # [=# | | ????????????#########"Y"## # # | | ????????????????????#"""?# + # | | ????????????????????####?# # # | | ?????????????????????????# # # | | ?????????????????????????# # # | | ?????????????????????????# ##### ##+#### | | ?????????????????????????# #???# #??? | | ?????????????????????????# ????# #??? | | ?????????????????????????# ????# ##+######? | | ?????????????????????????# ????# # *!!#? | | ????????????????????????? ????# # *! #? | | ????????????????????????? ????# # !! #? | | ????????????????????????# ????# # #? | | ????????????????????????# #####/#########? | +----------------------------------------------------+ Best States ------------- Heat Dissipation 25 Energy Generation 10 Energy Capacity 250 Matter Stores 300 Matter Capacity 300 Sight Range 18 Terrain Scan Density 10 Utility Shielding 33 Evasion (%) 55 Recoil Reduction 2 Item Schematics ----------------- None Robot Schematics ------------------ None Fabricated ------------ Nothing Repaired ---------- Nothing Studied --------- None Alien Tech Used ----------------- None Achievements -------------- None Challenges ------------ None Game ------ Seed WarpChainCasing Manual? 0 Play Time 00:12:05 Cumulative 21.4 hours Start 2026.04.23 @ 13:33:00 End 2026.04.23 @ 13:41:58 Sessions 1 Manual Loads 0 Difficulty Rogue Special Mode None Game No. 31 Rogue 31 Adventurer 0 Explorer 0 Win Type - Total 0 Types 0/0/0/0/0/0/0/0/0/0 Lore% 14 Gallery% 21 Achievement% 19 Wizard Run 0 Options --------- Layout 1 ASCII 0 Keyboard 0 Movement Numpad Keybinds 0 Fullscreen 1 Font 32/SmallcapsGlow Map View 50x35 Zoom Use 0% Tactical HUD 0 Map Filters NONE Filters NONE Steam 1 RUN: 8c280544-e081-494e-8843-8fee627aed33